[Event "NJSK 2021 Jeugd C"]
[Site "Almelo, Netherlands"]
[Date "2021.08.05"]
[Round "6.6"]
[White "Arnold, Rhys"]
[Black "Pancharajah, Abisan"]
[Result "1-0"]
[TimeControl "90min + 30sec/move"]
[WhiteElo "1748"]
[BlackElo "1650"]

1. e4 {[%clk 01:30:43]} {[%emt 00:00:16]} c5 {[%clk 01:30:49]} {[%emt
00:00:12]} 2. Nc3 {[%clk 01:30:33]} {[%emt 00:00:40]} d6 {[%clk 01:30:29]}
{[%emt 00:00:50]} 3. f4 {[%clk 01:30:42]} {[%emt 00:00:21]} Nc6 {[%clk
01:30:45]} {[%emt 00:00:14]} 4. Nf3 {[%clk 01:31:04]} {[%emt 00:00:07]} g6
{[%clk 01:30:45]} {[%emt 00:00:30]} 5. Bc4 {[%clk 01:31:18]} {[%emt 00:00:17]}
Bg7 {[%clk 01:30:43]} {[%emt 00:00:32]} 6. O-O {[%clk 01:30:57]} {[%emt
00:00:52]} e6 {[%clk 01:30:40]} {[%emt 00:00:31]} 7. d3 {[%clk 01:30:44]}
{[%emt 00:00:44]} Nge7 {[%clk 01:30:26]} {[%emt 00:00:44]} 8. Qe1 {[%clk
01:30:44]} {[%emt 00:00:30]} O-O {[%clk 01:30:42]} {[%emt 00:00:13]} 9. f5
{[%clk 01:28:31]} {[%emt 00:02:45]} exf5 {[%clk 01:25:34]} {[%emt 00:05:36]} 10.
Qh4 {[%clk 01:27:54]} {[%emt 00:01:08]} Ne5 {[%clk 01:08:14]} {[%emt 00:17:50]}
11. Bg5 {[%clk 01:23:04]} {[%emt 00:05:21]} Re8 {[%clk 00:47:51]} {[%emt
00:20:53]} 12. Nxe5 {[%clk 01:20:51]} {[%emt 00:02:43]} dxe5 {[%clk 00:47:30]}
{[%emt 00:00:51]} 13. Nd5 {[%clk 01:20:58]} {[%emt 00:00:22]} Kf8 {[%clk
00:44:18]} {[%emt 00:03:40]} 14. Bxe7+ {[%clk 01:17:22]} {[%emt 00:04:08]} Rxe7
{[%clk 00:44:08]} {[%emt 00:00:40]} 15. Nxe7 {[%clk 01:17:30]} {[%emt
00:00:22]} Qxe7 {[%clk 00:44:22]} {[%emt 00:00:17]} 16. Qxe7+ {[%clk 01:15:40]}
{[%emt 00:02:20]} Kxe7 {[%clk 00:44:41]} {[%emt 00:00:10]} 17. exf5 {[%clk
01:15:51]} {[%emt 00:00:20]} Bxf5 {[%clk 00:44:39]} {[%emt 00:00:32]} 18. g4
{[%clk 01:15:57]} {[%emt 00:00:23]} Be6 {[%clk 00:44:47]} {[%emt 00:00:22]} 19.
Bxe6 {[%clk 01:16:22]} {[%emt 00:00:06]} Kxe6 {[%clk 00:45:03]} {[%emt
00:00:14]} 20. Rae1 {[%clk 01:15:39]} {[%emt 00:01:12]} Rd8 {[%clk 00:45:05]}
{[%emt 00:00:28]} 21. b3 {[%clk 01:13:14]} {[%emt 00:02:55]} b5 {[%clk
00:45:10]} {[%emt 00:00:26]} 22. Re2 {[%clk 01:13:16]} {[%emt 00:00:29]} Rd7
{[%clk 00:45:00]} {[%emt 00:00:36]} 23. Rf3 {[%clk 01:12:55]} {[%emt 00:00:52]}
f5 {[%clk 00:44:22]} {[%emt 00:01:09]} 24. g5 {[%clk 01:09:52]} {[%emt
00:03:33]} Rd6 {[%clk 00:41:37]} {[%emt 00:03:16]} 25. Rh3 {[%clk 01:09:14]}
{[%emt 00:01:07]} Rd7 {[%clk 00:40:31]} {[%emt 00:01:37]} 26. Rxh7 {[%clk
01:06:50]} {[%emt 00:02:54]} f4 {[%clk 00:40:36]} {[%emt 00:00:25]} 27. Kg2
{[%clk 01:06:13]} {[%emt 00:01:08]} Kf5 {[%clk 00:40:22]} {[%emt 00:00:42]} 28.
Kf3 {[%clk 01:02:06]} {[%emt 00:04:38]} Re7 {[%clk 00:37:34]} {[%emt 00:03:00]}
29. h4 {[%clk 00:50:32]} {[%emt 00:12:22]} Rd7 {[%clk 00:37:10]} {[%emt
00:00:53]} 30. Re4 {[%clk 00:48:30]} {[%emt 00:02:32]} Re7 {[%clk 00:35:43]}
{[%emt 00:01:58]} 31. a4 {[%clk 00:48:29]} {[%emt 00:00:31]} a6 {[%clk
00:35:41]} {[%emt 00:00:32]} 32. axb5 {[%clk 00:46:10]} {[%emt 00:02:49]} axb5
{[%clk 00:36:08]} {[%emt 00:00:03]} 33. b4 {[%clk 00:46:22]} {[%emt 00:00:18]}
cxb4 {[%clk 00:35:25]} {[%emt 00:01:12]} 34. Rxb4 {[%clk 00:46:38]} {[%emt
00:00:14]} Rb7 {[%clk 00:35:47]} {[%emt 00:00:08]} 35. Rb3 {[%clk 00:41:32]}
{[%emt 00:05:37]} Ke6 {[%clk 00:34:49]} {[%emt 00:01:28]} 36. c4 {[%clk
00:28:02]} {[%emt 00:14:00]} b4 {[%clk 00:34:44]} {[%emt 00:00:34]} 37. Rxg7
{[%clk 00:23:31]} {[%emt 00:05:01]} Rxg7 {[%clk 00:34:35]} {[%emt 00:00:39]} 38.
Rxb4 {[%emt 00:00:32]} Rd7 {[%clk 00:34:36]} 39. Rb6+ {[%clk 00:21:38]} {[%emt
00:02:49]} Kf7 {[%clk 00:34:55]} {[%emt 00:00:10]} 40. Rb3 {[%clk 00:21:12]}
{[%emt 00:00:58]} Ke6 {[%clk 00:35:12]} {[%emt 00:00:12]} 41. Ra3 {[%clk
00:17:16]} {[%emt 00:04:28]} Kf5 {[%clk 00:33:55]} {[%emt 00:01:46]} 42. c5
{[%clk 00:16:43]} {[%emt 00:01:04]} Ke6 {[%clk 00:33:21]} {[%emt 00:01:03]} 43.
Ke4 {[%clk 00:16:35]} {[%emt 00:00:37]} Rd4+ {[%clk 00:33:32]} {[%emt
00:00:13]} 44. Kf3 {[%clk 00:17:00]} {[%emt 00:00:10]} Rd7 {[%clk 00:32:21]}
{[%emt 00:01:42]} 45. Rc3 {[%clk 00:17:01]} {[%emt 00:00:29]} Kd5 {[%clk
00:32:04]} {[%emt 00:00:48]} 46. c6 {[%clk 00:13:08]} {[%emt 00:04:23]} Rc7
{[%clk 00:32:10]} {[%emt 00:00:23]} 47. Rc4 {[%clk 00:13:28]} {[%emt 00:00:11]}
Kd6 {[%clk 00:31:54]} {[%emt 00:00:45]} 48. Ke4 {[%clk 00:11:47]} {[%emt
00:02:11]} f3 {[%clk 00:30:41]} {[%emt 00:01:44]} 49. Kxf3 {[%clk 00:12:03]}
{[%emt 00:00:14]} Kd5 {[%clk 00:31:01]} {[%emt 00:00:10]} 50. Ke3 {[%clk
00:11:38]} {[%emt 00:00:55]} Ke6 {[%clk 00:31:22]} {[%emt 00:00:08]} 51. Ke4
{[%clk 00:11:58]} {[%emt 00:00:10]} Kd6 {[%clk 00:31:48]} {[%emt 00:00:04]} 52.
Rc3 {[%clk 00:11:06]} {[%emt 00:01:22]} Ke6 {[%clk 00:31:15]} {[%emt 00:01:03]}
53. Rc5 {[%emt 00:00:20]} Kd6 {[%clk 00:31:31]} {[%emt 00:00:12]} 54. Rxe5
{[%clk 00:11:26]} {[%emt 00:00:23]} Rxc6 {[%clk 00:31:53]} {[%emt 00:00:08]} 55.
d4 {[%clk 00:11:25]} {[%emt 00:00:30]} Rc1 {[%clk 00:32:12]} {[%emt 00:00:11]}
56. Ra5 {[%clk 00:10:02]} {[%emt 00:01:54]} Rc6 {[%clk 00:31:46]} {[%emt
00:00:55]} 57. Ra7 {[%clk 00:09:53]} {[%emt 00:00:39]} Rc1 {[%clk 00:31:41]}
{[%emt 00:00:35]} 58. Ra6+ {[%clk 00:10:15]} {[%emt 00:00:09]} Ke7 {[%clk
00:31:53]} {[%emt 00:00:18]} 59. Rxg6 {[%clk 00:10:08]} {[%emt 00:00:36]} Rg1
{[%clk 00:32:09]} {[%emt 00:00:14]} 60. Kd5 {[%clk 00:10:05]} {[%emt 00:00:33]}
Kf7 {[%clk 00:32:28]} {[%emt 00:00:11]} 61. Rf6+ {[%clk 00:10:20]} {[%emt
00:00:15]} Kg7 {[%clk 00:32:52]} {[%emt 00:00:06]} 62. Kd6 {[%clk 00:10:39]}
{[%emt 00:00:10]} 1-0

[Event "NJSK 2021 Jeugd C"]
[Site "Almelo, Netherlands"]
[Date "2021.08.05"]
[Round "6.7"]
[White "Katpatal, Akshaj"]
[Black "Madularea, David"]
[Result "1-0"]
[TimeControl "90min + 30sec/move"]
[WhiteElo "1650"]
[BlackElo "1656"]

1. e4 {[%clk 01:30:56]} {[%emt 00:00:03]} c5 {[%clk 01:30:58]} {[%emt
00:00:03]} 2. Nf3 {[%clk 01:31:19]} {[%emt 00:00:06]} d6 {[%clk 01:31:25]}
{[%emt 00:00:03]} 3. c3 {[%clk 01:31:38]} {[%emt 00:00:11]} Nf6 {[%clk
01:31:28]} {[%emt 00:00:27]} 4. Be2 {[%clk 01:31:59]} {[%emt 00:00:08]} a6
{[%clk 01:30:45]} {[%emt 00:01:14]} 5. O-O {[%clk 01:32:13]} {[%emt 00:00:15]}
Nc6 {[%clk 01:30:43]} {[%emt 00:00:32]} 6. d4 {[%clk 01:32:30]} {[%emt
00:00:13]} cxd4 {[%clk 01:30:39]} {[%emt 00:00:33]} 7. cxd4 {[%clk 01:32:51]}
{[%emt 00:00:11]} Nxe4 {[%clk 01:28:56]} {[%emt 00:02:13]} 8. d5 {[%clk
01:32:52]} {[%emt 00:00:29]} Nb8 {[%clk 01:24:33]} {[%emt 00:04:53]} 9. Qa4+
{[%clk 01:33:13]} {[%emt 00:00:09]} Nd7 {[%clk 01:24:00]} {[%emt 00:01:02]} 10.
Qxe4 {[%emt 00:00:59]} Nf6 {[%clk 01:24:12]} {[%emt 00:00:11]} 11. Qd3 {[%clk
01:33:06]} {[%emt 00:00:15]} g6 {[%clk 01:24:10]} {[%emt 00:00:32]} 12. Nc3
{[%clk 01:33:29]} {[%emt 00:00:09]} Bf5 {[%clk 01:24:06]} {[%emt 00:00:33]} 13.
Qd1 {[%clk 01:33:48]} {[%emt 00:00:11]} Bg7 {[%clk 01:23:31]} {[%emt 00:01:06]}
14. Bd3 {[%clk 01:33:07]} {[%emt 00:01:11]} Bg4 {[%clk 01:22:20]} {[%emt
00:01:40]} 15. h3 {[%clk 01:33:19]} {[%emt 00:00:19]} Bd7 {[%clk 01:22:23]}
{[%emt 00:00:25]} 16. Re1 {[%clk 01:32:27]} {[%emt 00:01:23]} Kf8 {[%clk
01:20:39]} {[%emt 00:02:16]} 17. Bg5 {[%clk 01:32:32]} {[%emt 00:00:25]} h6
{[%clk 01:19:55]} {[%emt 00:01:14]} 18. Bxf6 {[%clk 01:30:23]} {[%emt
00:02:38]} Bxf6 {[%clk 01:20:19]} {[%emt 00:00:06]} 19. Qe2 {[%clk 01:30:03]}
{[%emt 00:00:47]} g5 {[%clk 01:17:59]} {[%emt 00:02:53]} 20. Ne4 {[%clk
01:29:44]} {[%emt 00:00:51]} Bg7 {[%clk 01:17:31]} {[%emt 00:00:58]} 21. Ng3
{[%clk 01:29:59]} {[%emt 00:00:15]} g4 {[%clk 01:16:34]} {[%emt 00:01:27]} 22.
hxg4 {[%clk 01:30:20]} {[%emt 00:00:09]} Bxg4 {[%clk 01:16:41]} {[%emt
00:00:19]} 23. Bf5 {[%clk 01:30:40]} {[%emt 00:00:12]} h5 {[%clk 01:12:51]}
{[%emt 00:04:21]} 24. Qe4 {[%clk 01:29:56]} {[%emt 00:01:15]} Bxf3 {[%clk
01:10:11]} {[%emt 00:03:09]} 25. Qxf3 {[%clk 01:30:15]} {[%emt 00:00:10]} h4
{[%clk 01:08:36]} {[%emt 00:02:06]} 26. Be6 {[%clk 01:30:40]} {[%emt 00:00:05]}
Bf6 {[%clk 01:08:47]} {[%emt 00:00:19]} 27. Nh5 {[%clk 01:30:39]} {[%emt
00:00:32]} fxe6 {[%clk 01:08:05]} {[%emt 00:01:12]} 28. Rxe6 {[%clk 01:30:49]}
{[%emt 00:00:20]} Rh6 {[%clk 00:56:47]} {[%emt 00:11:48]} 29. Qg4 {[%clk
01:30:17]} {[%emt 00:01:01]} Ke8 {[%clk 00:47:07]} {[%emt 00:10:11]} 30. Rae1
{[%clk 01:28:50]} {[%emt 00:01:57]} Rxh5 {[%clk 00:46:01]} {[%emt 00:01:37]} 31.
Rxf6 {[%clk 01:26:58]} {[%emt 00:02:22]} Re5 {[%clk 00:45:45]} {[%emt
00:00:46]} 32. Rxe5 {[%clk 01:25:30]} {[%emt 00:01:58]} dxe5 {[%clk 00:46:01]}
{[%emt 00:00:15]} 33. Qe6 {[%clk 01:25:35]} {[%emt 00:00:24]} Qc8 {[%clk
00:16:13]} {[%emt 00:30:17]} 34. Rh6 {[%clk 01:25:42]} {[%emt 00:00:23]} Qc1+
{[%clk 00:16:30]} {[%emt 00:00:14]} 35. Kh2 {[%clk 01:26:05]} {[%emt 00:00:06]}
Qf4+ {[%clk 00:16:26]} {[%emt 00:00:33]} 36. Kh3 {[%clk 01:25:03]} {[%emt
00:01:32]} 1-0

[Event "NJSK 2021 Jeugd C"]
[Site "Almelo, Netherlands"]
[Date "2021.08.05"]
[Round "6.8"]
[White "Lopes, Samuel"]
[Black "Verheij, Dana"]
[Result "0-1"]
[TimeControl "90min + 30sec/move"]
[WhiteElo "1124"]
[BlackElo "1931"]

1. e4 {[%clk 01:30:57]} {[%emt 00:00:03]} c5 {[%clk 01:30:59]} {[%emt
00:00:02]} 2. d4 {[%clk 01:31:16]} {[%emt 00:00:11]} cxd4 {[%clk 01:31:19]}
{[%emt 00:00:09]} 3. c3 {[%emt 00:00:09]} d3 {[%clk 01:31:30]} {[%emt
00:00:18]} 4. Bxd3 {[%clk 01:32:01]} {[%emt 00:00:07]} Nc6 {[%clk 01:31:34]}
{[%emt 00:00:27]} 5. Nf3 {[%clk 01:32:11]} {[%emt 00:00:18]} d6 {[%clk
01:31:35]} {[%emt 00:00:30]} 6. O-O {[%clk 01:32:09]} {[%emt 00:00:32]} g6
{[%clk 01:31:31]} {[%emt 00:00:34]} 7. Bf4 {[%clk 01:31:52]} {[%emt 00:00:48]}
Bg7 {[%clk 01:31:01]} {[%emt 00:01:00]} 8. Qe2 {[%clk 01:31:22]} {[%emt
00:01:00]} Nf6 {[%clk 01:30:02]} {[%emt 00:01:29]} 9. a3 {[%clk 01:30:13]}
{[%emt 00:01:40]} O-O {[%clk 01:27:48]} {[%emt 00:02:44]} 10. c4 {[%clk
01:27:32]} {[%emt 00:03:10]} Nh5 {[%clk 01:25:16]} {[%emt 00:03:01]} 11. Be3
{[%clk 01:23:07]} {[%emt 00:04:56]} Bg4 {[%clk 01:23:55]} {[%emt 00:01:49]} 12.
Ra2 {[%clk 01:16:48]} {[%emt 00:06:51]} Nd4 {[%clk 01:21:17]} {[%emt 00:03:06]}
13. Bxd4 {[%clk 01:15:53]} {[%emt 00:01:28]} Bxd4 {[%clk 01:21:35]} {[%emt
00:00:12]} 14. h3 {[%clk 01:15:41]} {[%emt 00:00:42]} Nf4 {[%clk 01:16:27]}
{[%emt 00:05:37]} 15. Qd1 {[%clk 01:10:23]} {[%emt 00:05:50]} Bh5 {[%clk
01:12:46]} {[%emt 00:04:10]} 16. Be2 {[%clk 01:04:26]} {[%emt 00:06:27]} Nxe2+
{[%clk 01:11:49]} {[%emt 00:01:27]} 17. Qxe2 {[%clk 01:04:29]} {[%emt
00:00:27]} Bxf3 {[%clk 01:09:16]} {[%emt 00:03:04]} 18. Qxf3 {[%clk 01:04:22]}
{[%emt 00:00:35]} f5 {[%clk 01:08:23]} {[%emt 00:01:22]} 19. Qd3 {[%clk
00:56:44]} {[%emt 00:08:09]} e5 {[%clk 01:05:22]} {[%emt 00:03:31]} 20. Nc3
{[%clk 00:50:58]} {[%emt 00:06:16]} Qh4 {[%clk 01:00:39]} {[%emt 00:05:12]} 21.
exf5 {[%clk 00:47:15]} {[%emt 00:04:14]} Rxf5 {[%clk 00:59:53]} {[%emt
00:01:15]} 22. Ne4 {[%clk 00:45:33]} {[%emt 00:02:13]} Raf8 {[%clk 00:58:29]}
{[%emt 00:01:53]} 23. b4 {[%clk 00:43:25]} {[%emt 00:02:39]} b5 {[%clk
00:46:46]} {[%emt 00:12:12]} 24. cxb5 {[%clk 00:38:10]} {[%emt 00:05:46]} d5
{[%clk 00:46:48]} {[%emt 00:00:28]} 25. Ng3 {[%clk 00:38:16]} {[%emt 00:00:23]}
Rf3 {[%clk 00:45:08]} {[%emt 00:02:06]} 26. gxf3 {[%clk 00:28:07]} {[%emt
00:10:44]} Qxg3+ {[%clk 00:45:11]} {[%emt 00:00:26]} 27. Kh1 {[%clk 00:28:32]}
{[%emt 00:00:05]} Qxh3+ {[%clk 00:45:30]} {[%emt 00:00:12]} 28. Kg1 {[%clk
00:28:53]} {[%emt 00:00:09]} Rxf3 {[%clk 00:45:31]} {[%emt 00:00:28]} 29. Qxf3
{[%clk 00:28:54]} {[%emt 00:00:29]} Qxf3 {[%clk 00:45:57]} {[%emt 00:00:06]} 30.
Rc1 {[%clk 00:18:12]} {[%emt 00:11:11]} h5 {[%clk 00:45:10]} {[%emt 00:01:16]}
31. Rac2 {[%clk 00:15:34]} {[%emt 00:03:08]} h4 {[%clk 00:43:42]} {[%emt
00:01:59]} 32. Rc8+ {[%clk 00:15:29]} {[%emt 00:00:35]} Kg7 {[%clk 00:43:50]}
{[%emt 00:00:22]} 33. R1c7+ {[%clk 00:15:31]} {[%emt 00:00:28]} Kh6 {[%clk
00:43:57]} {[%emt 00:00:23]} 34. Rh8+ {[%clk 00:13:46]} {[%emt 00:02:15]} Kg5
{[%clk 00:44:22]} {[%emt 00:00:05]} 35. Rc2 {[%clk 00:13:59]} {[%emt 00:00:17]}
Qd1+ {[%clk 00:44:33]} {[%emt 00:00:19]} 36. Kg2 {[%clk 00:14:22]} {[%emt
00:00:07]} Qxc2 {[%clk 00:44:53]} {[%emt 00:00:10]} 37. Rf8 {[%clk 00:14:44]}
{[%emt 00:00:08]} e4 {[%clk 00:44:44]} {[%emt 00:00:39]} 38. Rd8 {[%clk
00:14:56]} {[%emt 00:00:19]} Qxf2+ {[%clk 00:44:59]} {[%emt 00:00:15]} 39. Kh1
{[%clk 00:15:24]} {[%emt 00:00:02]} Qg1# {[%clk 00:44:50]} {[%emt 00:00:07]}
0-1

[Event "NJSK 2021 Jeugd C"]
[Site "Almelo, Netherlands"]
[Date "2021.08.05"]
[Round "6.9"]
[White "Ekker, Joshua"]
[Black "Aravindhan, Achyuth"]
[Result "0-1"]
[TimeControl "90min + 30sec/move"]
[WhiteElo "1695"]
[BlackElo "1031"]

1. e4 {[%clk 01:30:58]} {[%emt 00:00:01]} c5 {[%clk 01:30:55]} {[%emt
00:00:06]} 2. Nf3 {[%clk 01:31:22]} {[%emt 00:00:05]} d6 {[%clk 01:31:19]}
{[%emt 00:00:06]} 3. d4 {[%clk 01:31:46]} {[%emt 00:00:06]} cxd4 {[%clk
01:31:43]} {[%emt 00:00:06]} 4. Nxd4 {[%clk 01:32:10]} {[%emt 00:00:06]} Nf6
{[%clk 01:31:57]} {[%emt 00:00:16]} 5. Nc3 {[%clk 01:32:31]} {[%emt 00:00:09]}
g6 {[%clk 01:32:19]} {[%emt 00:00:08]} 6. Be3 {[%clk 01:32:46]} {[%emt
00:00:14]} Bg7 {[%clk 01:32:34]} {[%emt 00:00:16]} 7. f3 {[%clk 01:33:06]}
{[%emt 00:00:09]} O-O {[%clk 01:32:51]} {[%emt 00:00:14]} 8. Bc4 {[%clk
01:33:00]} {[%emt 00:00:36]} Nc6 {[%clk 01:30:39]} {[%emt 00:02:42]} 9. Qd2
{[%clk 01:32:38]} {[%emt 00:00:52]} Bd7 {[%clk 01:27:28]} {[%emt 00:03:41]} 10.
O-O-O {[%clk 01:32:43]} {[%emt 00:00:24]} Rc8 {[%clk 01:27:09]} {[%emt
00:00:50]} 11. Bb3 {[%clk 01:33:02]} {[%emt 00:00:11]} Na5 {[%clk 01:26:45]}
{[%emt 00:00:54]} 12. h4 {[%clk 01:31:30]} {[%emt 00:02:01]} h5 {[%clk
01:22:32]} {[%emt 00:04:43]} 13. Rdg1 {[%clk 01:24:24]} {[%emt 00:07:35]} e6
{[%clk 01:17:54]} {[%emt 00:05:08]} 14. Ndb5 {[%clk 01:00:30]} {[%emt
00:24:26]} Nxb3+ {[%clk 01:15:36]} {[%emt 00:02:49]} 15. axb3 {[%clk 01:00:40]}
{[%emt 00:00:19]} Qa5 {[%clk 01:13:48]} {[%emt 00:02:17]} 16. Na3 {[%clk
00:43:21]} {[%emt 00:17:49]} Rc6 {[%clk 01:07:18]} {[%emt 00:07:00]} 17. Ne2
{[%clk 00:36:40]} {[%emt 00:07:11]} Qxd2+ {[%clk 00:59:24]} {[%emt 00:08:24]}
18. Bxd2 {[%clk 00:36:28]} {[%emt 00:00:42]} e5 {[%clk 00:59:23]} {[%emt
00:00:27]} 19. Nc3 {[%clk 00:31:40]} {[%emt 00:05:22]} Ra6 {[%clk 00:56:41]}
{[%emt 00:03:12]} 20. Kb1 {[%clk 00:30:15]} {[%emt 00:01:55]} Be6 {[%clk
00:55:16]} {[%emt 00:01:54]} 21. Nd1 {[%clk 00:24:42]} {[%emt 00:06:04]} Rc8
{[%clk 00:53:56]} {[%emt 00:01:48]} 22. Nf2 {[%clk 00:22:16]} {[%emt 00:02:58]}
d5 {[%clk 00:51:25]} {[%emt 00:03:02]} 23. exd5 {[%clk 00:16:33]} {[%emt
00:06:12]} Bxd5 {[%clk 00:51:30]} {[%emt 00:00:24]} 24. Bc3 {[%clk 00:16:11]}
{[%emt 00:00:54]} Rxc3 {[%clk 00:49:13]} {[%emt 00:02:47]} 25. bxc3 {[%clk
00:16:04]} {[%emt 00:00:37]} Rxa3 {[%clk 00:49:33]} {[%emt 00:00:10]} 26. Kb2
{[%clk 00:15:44]} {[%emt 00:00:50]} Ra6 {[%clk 00:49:23]} {[%emt 00:00:36]} 27.
Ra1 {[%clk 00:10:20]} {[%emt 00:05:57]} Rxa1 {[%clk 00:47:27]} {[%emt
00:02:27]} 28. Rxa1 {[%clk 00:10:44]} {[%emt 00:00:07]} a6 {[%clk 00:47:46]}
{[%emt 00:00:11]} 29. Re1 {[%clk 00:10:38]} {[%emt 00:00:35]} Nd7 {[%clk
00:47:04]} {[%emt 00:01:12]} 30. Nd3 {[%clk 00:09:59]} {[%emt 00:01:08]} Bf6
{[%clk 00:46:47]} {[%emt 00:00:46]} 31. Nb4 {[%clk 00:09:09]} {[%emt 00:01:21]}
Be6 {[%clk 00:46:11]} {[%emt 00:01:02]} 32. g3 {[%clk 00:08:26]} {[%emt
00:01:16]} a5 {[%clk 00:46:21]} {[%emt 00:00:19]} 33. Nd3 {[%clk 00:07:25]}
{[%emt 00:01:33]} Bd5 {[%clk 00:46:10]} {[%emt 00:00:39]} 34. Re3 {[%clk
00:06:00]} {[%emt 00:01:55]} Kf8 {[%clk 00:45:40]} {[%emt 00:01:01]} 35. Kc1
{[%clk 00:04:41]} {[%emt 00:01:49]} Ke7 {[%clk 00:44:06]} {[%emt 00:02:02]} 36.
Kd2 {[%clk 00:03:44]} {[%emt 00:01:29]} Kd6 {[%clk 00:42:44]} {[%emt 00:01:46]}
37. Ke2 {[%clk 00:03:34]} {[%emt 00:00:46]} b5 {[%clk 00:42:31]} {[%emt
00:00:42]} 38. Nb2 {[%clk 00:03:13]} {[%emt 00:00:52]} Bd8 {[%clk 00:40:36]}
{[%emt 00:02:24]} 39. Rd3 {[%clk 00:03:02]} {[%emt 00:00:42]} Kc6 {[%clk
00:40:02]} {[%emt 00:01:03]} 40. Rd1 {[%clk 00:02:30]} {[%emt 00:01:02]} Be6
{[%clk 00:39:53]} {[%emt 00:00:38]} 41. Kd2 {[%clk 00:01:25]} {[%emt 00:01:36]}
Nf6 {[%clk 00:39:41]} {[%emt 00:00:42]} 42. Nd3 {[%clk 00:01:11]} {[%emt
00:00:44]} Bc7 {[%clk 00:39:52]} {[%emt 00:00:17]} 43. Re1 {[%clk 00:01:22]}
{[%emt 00:00:20]} e4 {[%clk 00:39:23]} {[%emt 00:00:59]} 44. fxe4 {[%clk
00:01:36]} {[%emt 00:00:16]} Bxg3 {[%clk 00:39:38]} {[%emt 00:00:14]} 45. Re3
{[%clk 00:01:31]} {[%emt 00:00:35]} Bxh4 {[%clk 00:39:47]} {[%emt 00:00:23]} 46.
Ne5+ {[%clk 00:01:33]} {[%emt 00:00:27]} Kc7 {[%clk 00:40:00]} {[%emt
00:00:17]} 47. Nf3 {[%clk 00:01:50]} {[%emt 00:00:13]} Bg3 {[%clk 00:40:21]}
{[%emt 00:00:09]} 48. Kd3 {[%clk 00:01:56]} {[%emt 00:00:24]} Bf4 {[%clk
00:40:30]} {[%emt 00:00:21]} 49. Re1 {[%clk 00:02:14]} {[%emt 00:00:12]} Bg4
{[%clk 00:40:42]} {[%emt 00:00:17]} 50. Nd4 {[%clk 00:02:29]} {[%emt 00:00:17]}
Kb6 {[%clk 00:40:17]} {[%emt 00:00:51]} 51. Rf1 {[%clk 00:02:03]} {[%emt
00:00:59]} Be5 {[%clk 00:38:52]} {[%emt 00:01:54]} 52. Rf2 {[%clk 00:01:48]}
{[%emt 00:00:46]} h4 {[%clk 00:38:51]} {[%emt 00:00:30]} 53. Rf1 {[%clk
00:02:06]} {[%emt 00:00:12]} h3 {[%clk 00:39:04]} {[%emt 00:00:15]} 54. Rh1
{[%clk 00:02:28]} {[%emt 00:00:10]} h2 {[%clk 00:39:20]} {[%emt 00:00:14]} 55.
Ke3 {[%clk 00:02:41]} {[%emt 00:00:18]} Bh3 {[%clk 00:39:33]} {[%emt 00:00:16]}
56. Kf3 {[%clk 00:02:23]} {[%emt 00:00:49]} g5 {[%clk 00:39:32]} {[%emt
00:00:30]} 57. Ne2 {[%clk 00:02:17]} {[%emt 00:00:37]} g4+ {[%clk 00:39:53]}
{[%emt 00:00:10]} 0-1

[Event "NJSK 2021 Jeugd C"]
[Site "Almelo, Netherlands"]
[Date "2021.08.05"]
[Round "6.10"]
[White "Kumar, Prayan Sai"]
[Black "Kien, Lancelot"]
[Result "1/2-1/2"]
[TimeControl "90min + 30sec/move"]
[WhiteElo "1652"]
[BlackElo "1650"]

1. d4 {[%clk 01:30:57]} {[%emt 00:00:03]} d5 {[%clk 01:30:55]} {[%emt
00:00:04]} 2. c4 {[%clk 01:31:12]} {[%emt 00:00:08]} dxc4 {[%clk 01:31:22]}
{[%emt 00:00:11]} 3. e4 {[%clk 01:31:30]} {[%emt 00:00:12]} Nf6 {[%clk
01:31:36]} {[%emt 00:00:16]} 4. e5 {[%clk 01:31:02]} {[%emt 00:00:58]} Nd5
{[%clk 01:31:58]} {[%emt 00:00:08]} 5. Bxc4 {[%clk 01:31:13]} {[%emt 00:00:18]}
Bf5 {[%clk 01:32:14]} {[%emt 00:00:15]} 6. Qb3 {[%clk 01:28:48]} {[%emt
00:02:55]} c6 {[%clk 01:31:59]} {[%emt 00:00:44]} 7. Ne2 {[%clk 01:19:14]}
{[%emt 00:10:04]} b5 {[%clk 01:29:29]} {[%emt 00:03:00]} 8. Bxd5 {[%clk
01:18:33]} {[%emt 00:01:11]} Qxd5 {[%clk 01:29:35]} {[%emt 00:00:24]} 9. Qxd5
{[%clk 01:18:51]} {[%emt 00:00:12]} cxd5 {[%clk 01:28:41]} {[%emt 00:01:24]} 10.
Nbc3 {[%clk 01:18:30]} {[%emt 00:00:52]} Nc6 {[%clk 01:11:35]} {[%emt
00:17:35]} 11. Nxd5 {[%clk 01:15:00]} {[%emt 00:04:00]} O-O-O {[%clk 01:09:51]}
{[%emt 00:02:15]} 12. Ne3 {[%clk 01:12:00]} {[%emt 00:03:29]} Bd3 {[%clk
01:07:08]} {[%emt 00:03:13]} 13. Nf4 {[%clk 01:11:32]} {[%emt 00:00:58]} Rxd4
{[%clk 01:06:36]} {[%emt 00:01:02]} 14. Nxd3 {[%clk 01:09:19]} {[%emt
00:02:42]} Rxd3 {[%clk 01:05:41]} {[%emt 00:01:25]} 15. Ke2 {[%clk 01:09:44]}
{[%emt 00:00:05]} Rd4 {[%clk 01:03:44]} {[%emt 00:02:27]} 16. b3 {[%clk
01:03:53]} {[%emt 00:06:21]} e6 {[%clk 00:59:35]} {[%emt 00:04:40]} 17. Bb2
{[%clk 00:59:41]} {[%emt 00:04:42]} Rd7 {[%clk 00:59:44]} {[%emt 00:00:21]} 18.
Rac1 {[%clk 00:53:27]} {[%emt 00:06:44]} Kb7 {[%clk 00:58:58]} {[%emt
00:01:17]} 19. a3 {[%clk 00:47:36]} {[%emt 00:06:21]} Nd4+ {[%clk 00:55:51]}
{[%emt 00:03:37]} 20. Bxd4 {[%clk 00:44:37]} {[%emt 00:03:29]} Rxd4 {[%clk
00:56:03]} {[%emt 00:00:18]} 21. Rhd1 {[%clk 00:41:07]} {[%emt 00:04:00]} Rxd1
{[%clk 00:53:39]} {[%emt 00:02:54]} 22. Rxd1 {[%clk 00:41:29]} {[%emt
00:00:09]} Kc7 {[%clk 00:53:51]} {[%emt 00:00:18]} 23. b4 {[%clk 00:41:34]}
{[%emt 00:00:25]} a5 {[%clk 00:50:30]} {[%emt 00:03:51]} 24. Nc2 {[%clk
00:38:33]} {[%emt 00:03:30]} Be7 {[%clk 00:49:30]} {[%emt 00:01:30]} 25. Rd3
{[%clk 00:27:12]} {[%emt 00:11:51]} Ra8 {[%clk 00:46:51]} {[%emt 00:03:10]} 26.
Rf3 {[%clk 00:26:21]} {[%emt 00:01:20]} f5 {[%clk 00:41:20]} {[%emt 00:06:01]}
27. Rb3 {[%clk 00:18:38]} {[%emt 00:08:13]} axb4 {[%clk 00:37:56]} {[%emt
00:03:54]} 28. Nxb4 {[%clk 00:13:35]} {[%emt 00:05:33]} Bxb4 {[%clk 00:34:43]}
{[%emt 00:03:43]} 29. Rxb4 {[%clk 00:11:50]} {[%emt 00:02:16]} Kc6 {[%clk
00:34:16]} {[%emt 00:00:57]} 30. Rb3 {[%clk 00:11:32]} {[%emt 00:00:47]} Ra4
{[%clk 00:34:18]} {[%emt 00:00:28]} 31. f3 {[%clk 00:11:12]} {[%emt 00:00:50]}
Kc5 {[%clk 00:27:24]} {[%emt 00:07:24]} 32. Rd3 {[%clk 00:10:28]} {[%emt
00:01:14]} 1/2-1/2